bitfinex/quotes_ETHUSD_20260126
["timestamp","ask_amount","ask_price","bid_price","bid_amount"]
[1769399283002,4.52962164,2846.3,2844.9,4.55491061]
[1769399283202,0.001,2845.8,2844.9,4.55491061]
[1769399283515,4.67033652,2846.5,2844.9,4.55491061]
[1769399283715,5.13737017,2846.4,2845.1,4.64614533]
[1769399285734,4.67033652,2846.3,2845.1,4.64614533]
[1769399286955,4.67033652,2846.3,2845.1,5.52483846]
[1769399287257,0.46703365,2846.4,2845.1,5.52483846]
[1769399287919,4.67033652,2846.3,2845.1,4.64614533]
[1769399288237,4.67033652,2846.1,2845.2,0.5189516]
[1769399288440,4.67033652,2846.1,2845.1,4.64614533]
[1769399289340,4.67033652,2846.1,2844.7,5.52497151]
[1769399289646,4.67033652,2846.1,2844.7,5.52497062]
[1769399291028,5.54875586,2846.1,2844.7,4.64614533]
[1769399291216,4.67033652,2845.9,2844.7,5.19864715]
[1769399291423,4.67033652,2845.9,2844.8,4.64614533]
[1769399292607,4.67033652,2845.9,2844.8,5.52494058]
[1769399293124,5.27190463,2846.2,2844.8,5.52494058]
[1769399293446,6.15026953,2846.2,2844.8,5.52494058]
[1769399293745,0.61502695,2846.1,2845.0,4.64614533]
[1769399294716,0.61502695,2846.1,2845.0,5.52487624]
[1769399295225,0.61602695,2846.1,2845.0,4.64614533]
[1769399296153,0.61602695,2846.1,2845.0,5.52486764]
[1769399296458,0.001,2846.1,2845.0,5.52486764]
[1769399297628,0.001,2846.1,2845.2,4.63544683]
[1769399298122,0.001,2846.1,2845.2,5.51411493]
[1769399301551,0.001,2846.1,2845.2,4.63544683]
[1769399301742,0.001,2846.1,2845.2,5.51411179]
[1769399301917,0.001,2846.1,2845.4,4.63544683]
[1769399304257,0.001,2846.1,2845.4,5.51404154]
[1769399304421,0.001,2846.1,2845.5,4.63544683]
[1769399304847,0.001,2846.1,2845.5,5.51402352]
[1769399305043,0.001,2846.1,2845.5,4.63544683]
[1769399305246,0.001,2846.1,2845.6,5.18685054]
[1769399307344,0.001,2846.1,2845.6,6.06539076]
[1769399307845,0.001,2846.1,2845.6,5.18685054]
[1769399308149,0.001,2845.9,2845.6,5.18685054]
[1769399308353,0.001,2846.1,2845.6,5.18685054]
[1769399308521,0.001,2846.1,2845.7,0.40785968]
[1769399308842,0.001,2846.1,2845.7,5.04330651]
[1769399310040,0.001,2846.7,2845.8,4.63544683]
[1769399310852,0.001,2846.7,2845.8,5.51392788]
[1769399311148,4.98334161,2846.6,2845.7,0.40785968]
[1769399311350,4.98334161,2846.4,2845.7,0.40785968]
[1769399312446,4.98334161,2846.4,2845.4,6.07065907]
[1769399312447,4.98334161,2846.4,2845.4,0.002]
[1769399312754,4.98334161,2846.4,2845.4,5.51605792]
[1769399314054,0.49843416,2846.5,2845.5,5.01965934]
[1769399314248,5.05268662,2846.7,2845.5,5.01965934]
[1769399315653,5.05268662,2846.7,2845.7,5.01965934]
[1769399318058,5.05268662,2846.7,2845.7,5.89817214]
[1769399319850,0.001,2846.5,2845.7,5.01965934]
[1769399320164,5.05268662,2846.5,2845.5,5.89821708]
[1769399320385,5.05268662,2846.5,2845.6,0.59002171]
[1769399321141,5.05268662,2846.5,2845.5,5.01965934]
[1769399321338,5.05268662,2846.5,2845.4,0.002]
[1769399321579,5.05268662,2846.5,2845.5,0.87857601]
[1769399321865,0.001,2846.5,2845.5,5.01965934]
[1769399322175,0.001,2846.5,2845.9,5.01965934]
[1769399324207,0.001,2846.5,2845.6,5.89820594]
[1769399324352,0.001,2846.5,2845.7,6.21634584]
[1769399324886,0.001,2846.5,2845.5,6.94721746]
[1769399324887,5.05168662,2846.4,2845.5,5.01965934]
[1769399325399,5.05168662,2846.4,2845.5,5.89823388]
[1769399325581,0.001,2846.5,2845.6,0.87853824]
[1769399325782,0.001,2846.5,2845.7,5.01965934]
[1769399327979,0.001,2846.5,2846.0,5.01965934]
[1769399328183,0.001,2846.5,2846.0,6.12849118]
[1769399330475,0.001,2846.5,2846.0,5.01965934]
[1769399332194,0.001,2846.5,2845.9,0.002]
[1769399332359,5.05268662,2846.5,2845.9,0.002]
[1769399340603,0.001,2846.5,2845.9,0.002]
[1769399343085,0.001,2846.5,2845.9,5.02165934]
[1769399343409,0.001,2846.5,2846.1,4.83259119]
[1769399343711,0.001,2846.5,2846.1,4.83459119]
[1769399343879,0.001,2846.3,2846.1,4.83459119]
[1769399344379,0.001,2846.7,2846.2,4.83259119]
[1769399346882,0.001,2846.7,2846.1,0.002]
[1769399350448,0.001,2846.7,2846.1,4.83459119]
[1769399350620,0.001,2846.7,2846.2,5.37876388]
[1769399351322,0.001,2846.7,2846.2,0.54617269]
[1769399351624,0.001,2846.7,2846.2,5.37876388]
[1769399355298,0.001,2846.7,2846.2,0.54617269]
[1769399356342,0.001,2846.7,2846.4,0.002]
[1769399356546,0.001,2846.5,2846.4,0.002]
[1769399364498,0.001,2846.5,2846.4,0.53599642]
[1769399367406,0.001,2846.5,2846.4,0.002]
[1769399369636,0.001,2846.5,2846.1,0.002]
[1769399370011,0.001,2846.5,2846.1,4.79379155]
[1769399372738,4.64909296,2847.2,2846.3,6.06714236]
[1769399372925,4.64909296,2847.4,2846.6,6.06714236]
[1769399373129,4.64909296,2847.7,2846.7,4.79179155]
[1769399373938,4.99534434,2847.9,2846.7,4.79179155]
[1769399374241,4.99534434,2847.9,2847.0,5.09144654]
[1769399374542,0.001,2848.0,2847.1,6.16984489]
[1769399375228,4.99634434,2848.0,2847.1,6.16984489]
[1769399375816,4.99634434,2848.0,2847.1,5.09144654]
[1769399376417,0.001,2848.0,2847.1,5.09144654]
[1769399377539,4.99634434,2848.0,2847.1,5.09144654]
[1769399377842,0.001,2848.0,2847.1,5.09144654]
[1769399379127,0.001,2848.0,2847.6,5.09144654]
[1769399379445,0.001,2848.0,2847.7,1.11585889]
[1769399379846,0.001,2847.8,2847.7,1.11585889]
[1769399380027,0.001,2848.2,2847.7,6.20730543]
[1769399381038,0.001,2848.2,2847.7,7.08518139]
[1769399381342,0.001,2848.2,2847.7,6.20730543]
[1769399381546,0.001,2848.2,2847.8,0.57276703]
[1769399385126,0.001,2848.2,2847.6,5.96937187]
[1769399385938,0.001,2848.2,2847.6,5.09144654]
[1769399386435,0.001,2848.2,2847.6,5.96937876]
[1769399386752,0.001,2848.2,2847.6,5.09144654]
[1769399387147,0.001,2848.2,2847.6,5.96937743]
[1769399387348,0.001,2848.2,2847.7,5.09144654]
[1769399387848,0.001,2848.2,2847.7,5.96934293]
[1769399388254,0.001,2848.2,2847.7,5.09144654]
[1769399391136,0.001,2848.2,2847.7,5.96933494]
[1769399392140,0.001,2848.6,2847.9,5.09144654]
[1769399392356,0.001,2848.6,2848.0,1.11585889]
[1769399392560,4.99634434,2848.6,2848.0,1.11585889]
[1769399392752,4.99634434,2848.6,2847.7,5.09144654]
[1769399394640,4.99634434,2848.6,2844.8,6.37]
[1769399394641,4.99634434,2848.6,2847.2,5.96947684]
[1769399394849,5.8739868,2848.6,2847.1,5.96951581]
[1769399395476,5.8739868,2848.6,2847.2,5.96949832]
[1769399395662,6.18945726,2848.5,2847.4,5.09144654]
[1769399396063,4.99534434,2848.5,2847.4,5.96943072]
[1769399396259,4.99534434,2848.5,2847.4,5.09144654]
[1769399396471,4.99534434,2848.4,2847.3,0.59694983]
[1769399396659,4.99534434,2848.4,2847.1,5.96953029]
[1769399396854,4.99534434,2848.4,2847.2,0.03246578]
[1769399397567,4.99534434,2848.4,2847.2,5.12391232]
[1769399399037,4.99534434,2848.4,2847.2,6.00196536]
[1769399399460,4.99534434,2848.4,2847.2,5.12391232]
[1769399399664,4.99534434,2848.2,2847.3,0.60019769]
[1769399400367,4.99534434,2848.2,2847.1,6.0020014]
[1769399400749,4.99534434,2848.5,2847.3,5.96946035]
[1769399400966,0.001,2848.6,2847.8,11.1585889]
[1769399401151,4.99634434,2848.6,2847.8,5.09144654]
[1769399401353,4.99634434,2848.6,2847.6,5.09144654]
[1769399401650,4.99634434,2848.6,2847.7,1.11585889]
[1769399402059,5.87397932,2848.6,2847.4,5.09144654]
[1769399402236,4.99634434,2848.6,2847.2,0.87803718]
[1769399402435,5.87397348,2848.6,2847.2,5.96948372]
[1769399402635,4.99634434,2848.6,2847.2,5.96948372]
[1769399402836,4.99634434,2848.6,2847.3,5.09144654]
[1769399403039,4.99534434,2848.5,2847.4,6.29510915]
[1769399403268,0.001,2848.6,2847.6,5.09144654]
[1769399403462,0.001,2848.6,2847.8,11.06106013]
[1769399403658,0.001,2848.6,2848.0,4.99391777]
[1769399404049,0.001,2848.2,2848.0,4.99391777]
[1769399404249,0.001,2848.2,2848.1,0.48496331]
[1769399405477,0.001,2848.6,2848.1,5.47888108]
[1769399407667,0.001,2849.3,2848.3,4.99391777]
[1769399407985,4.73872645,2849.3,2848.2,6.05674366]
[1769399408152,4.73872645,2849.3,2848.3,4.99391777]
[1769399408366,4.73872645,2849.3,2848.4,1.10506614]
[1769399409372,4.73872645,2849.3,2848.1,0.87775638]
[1769399409678,4.73872645,2849.3,2848.1,5.87167415]
[1769399411068,0.001,2849.3,2848.3,4.99391777]
[1769399411271,0.001,2849.3,2848.6,4.99391777]
[1769399412656,0.001,2849.3,2848.7,0.87759328]
[1769399412857,0.001,2849.3,2848.8,4.99391777]
[1769399413097,0.001,2849.3,2848.9,0.58715111]
[1769399413256,0.001,2849.3,2848.9,5.58106888]
[1769399415150,0.001,2849.3,2849.0,4.99391777]
[1769399415782,0.001,2849.3,2848.9,0.58715111]
[1769399415959,0.001,2849.3,2848.6,4.99391777]
[1769399416160,4.73872645,2849.3,2848.3,5.87361055]
[1769399416479,4.73872645,2849.1,2848.3,0.002]
[1769399416868,4.73872645,2849.1,2848.3,5.68692325]
[1769399417185,4.73872645,2849.1,2848.3,4.80922106]
[1769399417383,4.73872645,2849.1,2848.4,1.17436911]
[1769399418956,0.001,2849.1,2848.5,4.80722106]
[1769399419380,0.001,2849.1,2848.5,6.05674366]
[1769399420177,0.001,2849.1,2848.5,10.86396472]
[1769399421170,0.001,2849.1,2848.5,4.80722106]
[1769399421368,5.06124827,2849.1,2848.3,0.03709624]
[1769399421571,5.06124827,2849.1,2848.3,0.002]
[1769399425069,5.93872689,2849.1,2848.0,0.002]
[1769399425270,5.93872689,2849.1,2847.4,0.002]
[1769399425271,5.06024827,2848.6,2847.4,0.002]
[1769399427897,5.93787804,2848.6,2847.4,0.002]
[1769399428198,5.06024827,2848.4,2847.4,0.002]
[1769399428570,5.06024827,2848.4,2847.6,0.002]
[1769399428771,5.06024827,2848.3,2847.4,0.002]
[1769399429883,5.06024827,2848.1,2847.4,0.002]
[1769399430088,5.06024827,2847.9,2847.4,0.002]
[1769399432477,5.06024827,2848.3,2847.4,0.002]
[1769399432782,5.06024827,2848.6,2847.5,4.80722106]
[1769399433297,5.06024827,2848.6,2847.4,0.002]
[1769399435342,0.8776549,2848.5,2847.4,0.002]
[1769399435472,5.35045268,2848.4,2847.4,0.002]
[1769399436677,5.35045268,2848.4,2847.4,4.75964673]
[1769399437200,5.35045268,2848.4,2847.4,4.79124739]
[1769399437374,5.35045268,2848.4,2847.4,4.75964673]
[1769399439672,5.35045268,2848.4,2847.4,5.6376285]
[1769399439878,5.35045268,2848.4,2847.6,4.75764673]
[1769399440520,0.43882541,2848.4,2847.6,4.75964673]
[1769399440705,0.001,2848.2,2847.6,4.75964673]
[1769399443306,0.001,2848.2,2847.6,0.002]
[1769399443698,4.91262727,2848.2,2847.6,0.002]
[1769399444191,0.001,2848.2,2847.6,0.002]
[1769399444383,0.001,2848.2,2847.6,4.75964673]
[1769399444581,0.001,2848.2,2847.6,5.2358114]
[1769399448282,0.001,2848.2,2847.6,4.75964673]
[1769399449312,0.001,2848.2,2847.6,0.002]
[1769399449614,9.448,2847.5,2847.4,4.75964673]
[1769399449814,9.40309162,2847.5,2847.4,4.75964673]
[1769399450216,0.001,2848.2,2847.4,4.75964673]
[1769399450418,0.001,2848.2,2847.5,5.32141336]
[1769399453328,0.001,2848.2,2847.6,4.75964673]
[1769399457810,0.001,2848.2,2847.6,5.63757391]
[1769399458009,0.001,2848.2,2847.6,4.75964673]
[1769399460132,0.001,2848.2,2847.6,0.002]
[1769399460330,4.91262727,2848.2,2847.6,0.002]
[1769399460704,0.001,2848.2,2847.6,0.002]
[1769399461306,4.91262727,2848.2,2847.6,0.002]
[1769399461534,6.00956436,2848.2,2847.6,0.002]
[1769399463910,4.91262727,2848.2,2847.6,0.002]
[1769399464999,0.001,2848.0,2847.6,0.002]
[1769399466703,0.001,2848.0,2847.6,4.72627192]
[1769399468626,0.001,2848.0,2847.6,0.002]
[1769399472342,0.001,2848.0,2847.6,4.72627192]
[1769399472741,0.001,2848.0,2847.7,0.47262719]
[1769399473064,0.001,2848.0,2847.7,5.19689911]
[1769399473850,0.001,2848.0,2847.7,0.47262719]
[1769399474159,0.001,2848.0,2847.6,0.002]
[1769399475074,5.06732092,2848.0,2847.6,0.002]
[1769399475279,5.06732092,2848.0,2847.1,4.72627192]
[1769399475280,5.06632092,2847.6,2847.1,0.002]
[1769399476428,5.94425509,2847.6,2847.1,0.002]
[1769399476735,4.91467344,2847.4,2846.2,0.002]
[1769399476931,4.91467344,2847.4,2846.2,0.88035816]
[1769399477131,4.91467344,2847.4,2846.3,4.8598225]
[1769399477350,4.91467344,2847.4,2846.4,0.87829586]
[1769399477537,4.91467344,2847.4,2846.3,4.8598225]
[1769399477751,4.91467344,2847.4,2846.4,0.57401704]
[1769399479330,4.91467344,2847.4,2846.4,5.43383954]
[1769399479755,6.06061385,2847.7,2846.5,4.8598225]
[1769399479976,0.001,2847.8,2846.4,1.45231733]
[1769399479977,0.001,2847.8,2846.7,4.8598225]
[1769399480849,4.91567344,2847.8,2846.7,4.8598225]
[1769399481044,4.91567344,2847.8,2846.8,1.09204364]
[1769399482369,4.91567344,2847.8,2846.9,4.8598225]
[1769399482578,4.91567344,2847.8,2847.0,4.8598225]
[1769399482579,0.001,2847.8,2847.0,4.8598225]
[1769399483849,0.001,2847.8,2847.0,5.73791133]
[1769399484054,0.001,2847.8,2847.1,5.43361363]
[1769399487676,0.001,2847.8,2847.1,6.31170003]
[1769399488041,0.001,2847.8,2847.2,4.8598225]
[1769399488250,0.001,2847.8,2847.2,5.73786223]
[1769399489170,0.001,2847.6,2847.2,5.73786223]
[1769399489470,0.001,2847.8,2847.3,5.84222198]
[1769399490498,0.001,2847.8,2847.4,5.73781645]
[1769399490642,0.001,2848.0,2847.5,4.8598225]
[1769399492553,0.001,2848.0,2847.5,5.73776812]
[1769399493662,4.91467344,2848.7,2847.6,4.82804398]
[1769399493884,4.91467344,2848.7,2847.8,4.82804398]
[1769399494393,4.52453031,2848.9,2847.8,4.82804398]
[1769399494548,4.52453031,2848.9,2847.9,5.70588379]
[1769399495882,0.001,2848.9,2847.9,5.70588379]
[1769399496780,0.001,2848.9,2848.1,4.82804398]
[1769399496964,0.001,2848.9,2848.2,5.38434838]
[1769399498574,0.001,2848.9,2848.4,4.82804398]
[1769399501385,0.001,2848.9,2848.6,4.82804398]
[1769399501761,0.001,2849.1,2848.6,4.82804398]
[1769399503376,0.001,2849.1,2848.6,5.70564781]
[1769399503588,0.001,2849.1,2848.7,5.38976654]
[1769399505168,0.001,2849.1,2848.7,0.56172256]
[1769399505359,0.001,2849.1,2848.5,0.735]
[1769399505563,0.001,2849.1,2848.5,6.44069723]
[1769399505788,0.001,2849.1,2848.6,4.82804398]
[1769399507191,0.001,2849.1,2848.7,4.86314771]
[1769399510897,0.001,2849.1,2848.7,5.74072096]
[1769399511071,0.001,2849.1,2848.8,0.5740721]
[1769399511591,0.001,2849.3,2848.8,5.40211608]
[1769399511795,0.001,2849.3,2848.9,0.03510126]
[1769399512370,0.001,2849.3,2848.9,4.86314524]
[1769399512998,0.001,2849.3,2848.9,5.74065346]
[1769399513295,0.001,2849.1,2849.0,1.29324942]
[1769399513501,0.001,2849.1,2849.0,0.735]
[1769399515578,0.001,2849.1,2848.3,4.82804398]
[1769399515774,0.001,2849.1,2848.4,0.735]
[1769399515775,4.52453031,2849.1,2848.4,0.735]
[1769399517979,4.52453031,2849.1,2848.3,0.735]
[1769399518597,4.97708334,2849.1,2848.1,0.77011112]
[1769399518797,4.97708334,2849.1,2848.1,0.735]
[1769399520705,4.97708334,2849.1,2847.6,3.51169728]
[1769399520706,4.52353031,2848.8,2847.5,4.82804398]
[1769399521002,1.33102559,2849.1,2847.6,0.4828044]
[1769399521003,4.52353031,2848.6,2847.6,0.4828044]
[1769399521203,4.52353031,2848.6,2847.5,1.64807886]
[1769399521406,4.52353031,2849.0,2847.6,4.82804398]
[1769399521616,4.52353031,2849.0,2847.9,4.82804398]
[1769399521904,4.52353031,2849.0,2848.0,5.91636628]
[1769399522087,4.52353031,2849.0,2848.1,0.03511112]
[1769399522283,4.52353031,2849.0,2848.0,5.95147863]
[1769399522683,4.52353031,2849.0,2848.0,1.0883223]
[1769399522889,4.52353031,2849.0,2847.8,0.735]
[1769399523090,4.52353031,2849.0,2847.9,0.03511359]
[1769399523288,4.52353031,2849.0,2847.8,0.77011482]
[1769399523792,4.45210946,2848.8,2847.8,0.03511482]
[1769399523998,4.45210946,2848.8,2847.7,0.735]
[1769399524309,4.45210946,2848.6,2847.7,0.735]
[1769399524507,4.45210946,2848.6,2847.7,5.18459529]
[1769399524910,4.45210946,2848.6,2848.1,0.002]
[1769399529125,4.45210946,2848.6,2847.9,0.002]
[1769399529825,4.45210946,2848.3,2847.2,4.41447924]
[1769399530029,4.45210946,2848.3,2847.0,6.02759592]
[1769399530531,4.45210946,2848.3,2847.0,5.18460393]
[1769399530692,4.45210946,2848.3,2847.0,6.06270853]
[1769399530891,4.45210946,2848.3,2847.0,6.06270029]
[1769399531110,4.45210946,2848.1,2847.1,0.60627003]
[1769399531299,4.45210946,2848.1,2847.1,5.02074927]
[1769399531489,4.45210946,2848.1,2847.1,5.89883209]
[1769399531692,4.45210946,2848.1,2847.2,4.44960146]
[1769399532219,4.45210946,2847.9,2847.1,0.60627003]
[1769399532420,1.05108199,2847.8,2847.0,5.32769979]
[1769399532601,4.45210946,2848.0,2847.1,0.87808493]
[1769399532791,4.45210946,2848.0,2847.1,4.41447924]
[1769399533319,4.45210946,2848.0,2847.2,4.44960146]
[1769399533519,4.45210946,2848.0,2847.2,4.41447924]
[1769399533696,4.45210946,2848.5,2847.3,4.44960023]
[1769399533908,4.45210946,2848.5,2847.7,4.41447924]
[1769399536938,3.81656549,2849.0,2847.8,0.03511482]
[1769399537136,3.81656549,2849.0,2847.9,0.002]
[1769399538024,4.69406944,2849.0,2847.9,0.002]
[1769399538221,6.05871046,2848.9,2847.9,0.002]
[1769399538520,3.81656549,2848.7,2847.9,0.002]
[1769399539742,3.81656549,2848.7,2847.9,4.19886293]
[1769399541238,3.81656549,2849.0,2847.9,4.19886293]
[1769399541437,3.81656549,2849.0,2848.1,4.19686293]
[1769399542128,3.81656549,2849.0,2848.0,4.23197528]
[1769399542306,3.81656549,2849.0,2848.0,4.78196465]
[1769399542307,4.19832204,2849.0,2848.0,4.78196465]
[1769399543808,3.81656549,2849.0,2848.1,4.19686293]
[1769399544732,3.81656549,2849.0,2848.0,0.54998937]
[1769399546716,3.81656549,2849.0,2847.9,4.23397652]
[1769399547757,3.81656549,2849.0,2847.9,5.11181461]
[1769399547917,3.81656549,2849.0,2847.9,4.23397652]
[1769399548845,3.81656549,2849.0,2847.9,5.11181342]
[1769399549047,0.001,2849.1,2848.0,4.19686293]
[1769399549252,0.001,2849.1,2848.2,4.19686293]
[1769399549457,0.001,2849.1,2848.4,4.19686293]
[1769399549749,0.001,2849.1,2848.4,4.23197035]
[1769399550115,0.001,2849.1,2848.4,4.19686293]
[1769399550537,3.81756549,2849.1,2848.3,0.03510866]
[1769399551155,0.001,2849.1,2848.4,4.62006009]
[1769399552521,0.001,2849.1,2848.4,0.42319716]
[1769399552522,3.81756549,2849.1,2848.4,0.42319716]
[1769399552724,3.81756549,2849.1,2848.1,0.03511112]
[1769399553217,3.81756549,2849.1,2848.0,5.10975695]
[1769399554153,3.81756549,2849.1,2848.0,4.23197528]
[1769399554335,3.81756549,2849.1,2848.0,5.10978402]
[1769399555248,3.81756549,2849.1,2848.1,4.42035407]
[1769399555453,3.81756549,2849.1,2848.2,4.02323616]
[1769399556319,0.001,2849.1,2848.2,4.02323616]
[1769399557427,0.001,2849.1,2848.3,3.54257963]
[1769399559858,3.80245701,2849.0,2848.2,0.48065653]
[1769399560354,3.80245701,2849.0,2848.2,4.02323616]
[1769399560566,3.80245701,2849.0,2848.2,0.48065653]
[1769399561138,3.80245701,2849.0,2848.4,0.002]
[1769399561365,0.001,2848.9,2848.4,0.002]
[1769399561929,0.001,2848.9,2848.4,3.54457963]
[1769399570066,3.80345701,2848.9,2848.4,0.002]
[1769399572867,3.80245701,2848.5,2847.9,0.002]
[1769399573038,6.05871046,2848.3,2847.2,3.54257963]
[1769399573239,6.05871046,2848.3,2846.8,3.51268224]
[1769399573240,3.80245701,2848.2,2846.9,1.64825588]
[1769399573584,3.80245701,2848.0,2847.1,0.03512345]
[1769399574180,3.80245701,2848.0,2847.0,3.57970432]
[1769399574736,3.80245701,2848.0,2847.0,3.54457963]
[1769399574939,3.80245701,2848.0,2847.0,0.002]
[1769399577476,3.80245701,2847.6,2846.7,0.002]
[1769399578746,4.68039837,2847.6,2846.7,0.002]
[1769399579044,3.80245701,2847.4,2846.7,0.002]
[1769399580689,3.80245701,2847.7,2846.7,0.002]
[1769399581661,3.80245701,2848.1,2847.0,9.60129009]
[1769399581866,4.68024051,2848.1,2847.0,3.54257963]
[1769399582066,3.80245701,2847.9,2846.7,0.002]
[1769399582686,3.80245701,2847.7,2846.7,0.002]
[1769399582892,3.80245701,2847.6,2846.7,0.002]
[1769399583565,4.69297344,2848.0,2846.8,3.10926107]
[1769399583880,7.21175127,2849.3,2847.2,3.10926107]
[1769399583881,3.34713114,2848.3,2847.2,3.10926107]
[1769399584062,3.34713114,2848.3,2847.3,3.14438206]
[1769399584262,3.34713114,2848.3,2847.3,3.10926107]
[1769399584463,3.34713114,2848.3,2847.4,3.14438082]
[1769399584803,0.3814457,2848.9,2847.8,3.10926107]
[1769399585462,0.001,2848.7,2847.8,3.10926107]
[1769399586865,0.001,2848.7,2847.9,3.10926107]
[1769399588293,0.001,2848.7,2847.7,3.10926107]
[1769399589589,0.001,2848.7,2847.7,3.14437712]
[1769399590191,3.34813114,2848.7,2847.8,0.40222884]
[1769399590395,3.34813114,2848.7,2847.7,3.10926107]
[1769399591602,3.34713114,2848.6,2847.4,3.10926107]
[1769399592181,3.34713114,2848.6,2847.4,3.98724968]
[1769399593804,3.34713114,2848.6,2847.3,0.03512099]
[1769399594005,3.34713114,2848.6,2846.9,0.88012762]
[1769399594006,3.34713114,2848.5,2846.9,0.88012762]
[1769399594176,4.03298207,2848.5,2847.0,0.43928189]
[1769399594709,4.03298207,2848.5,2846.9,0.03712592]
[1769399594873,4.03298207,2848.5,2846.9,0.002]
[1769399596201,3.34713114,2848.3,2846.9,0.002]
[1769399596405,3.34713114,2848.3,2846.9,3.11126107]
[1769399598706,0.87774734,2848.2,2846.9,3.11126107]
[1769399598910,3.36813749,2848.1,2846.9,3.11126107]
[1769399600205,3.36813749,2848.1,2846.9,0.002]
[1769399600796,3.06536276,2847.9,2846.9,0.002]
[1769399604497,3.06536276,2847.9,2846.9,2.84941234]
[1769399605509,2.15,2848.0,2847.1,2.84741234]
[1769399605682,2.70181375,2848.0,2847.2,2.84741234]
[1769399606012,2.15,2848.0,2847.2,2.84741234]
[1769399606212,2.15,2848.0,2847.3,2.84741234]
[1769399607592,3.94305198,2848.4,2847.3,2.84741234]
[1769399607910,3.06536276,2848.3,2847.3,2.84741234]
[1769399608321,3.06536276,2848.3,2844.4,14.5]
[1769399608322,0.08373018,2846.4,2845.4,0.002]
[1769399608479,0.17915854,2845.0,2844.9,0.002]
[1769399608679,0.17915854,2845.0,2844.4,1.77993993]
[1769399609504,0.17915854,2845.0,2844.4,1.95813392]
[1769399611386,0.0589836,2845.0,2844.4,1.95813392]
[1769399614587,1.40544351,2845.9,2844.4,1.95813392]
[1769399614787,2.28391767,2845.9,2844.4,1.95813392]
[1769399614987,2.28390024,2845.9,2844.4,1.77488429]
[1769399615189,0.22839002,2845.8,2844.4,1.77488429]
[1769399616199,0.22839002,2845.8,2844.4,2.6538029]
[1769399616520,2.58737,2845.8,2844.4,1.77488429]
[1769399617493,2.58736639,2845.8,2844.4,1.77488429]
[1769399618332,2.62249246,2845.8,2844.4,1.77488429]
[1769399618527,0.62643353,2845.7,2844.4,1.5966903]
[1769399619230,2.77643353,2845.7,2844.4,1.5966903]
[1769399619611,0.03512607,2845.6,2844.4,1.5966903]
[1769399620761,0.91367719,2845.6,2844.4,1.5966903]
[1769399620906,1.50078436,2845.5,2844.4,1.5966903]
[1769399621105,0.27667222,2845.4,2844.4,1.5966903]
[1769399621630,1.78239412,2845.4,2844.2,0.002]
[1769399622725,2.66592011,2845.4,2844.2,0.002]
[1769399622930,1.51060921,2845.3,2844.2,0.002]
[1769399623135,1.23904108,2845.4,2844.2,0.002]
[1769399623136,1.51060921,2845.1,2844.2,0.002]
[1769399623431,1.54573528,2845.0,2844.0,0.002]
[1769399624732,0.87876551,2844.9,2844.0,0.002]
[1769399624934,0.27757615,2844.8,2844.0,0.002]
[1769399626639,1.80517824,2844.8,2844.0,0.002]
[1769399627347,0.87882729,2844.7,2844.0,0.002]
[1769399627549,2.41105141,2844.7,2844.0,0.002]
[1769399627746,2.41105141,2844.7,2843.2,2.9822547]
[1769399627747,1.6159543,2844.3,2843.2,2.9822547]
[1769399629135,1.6159543,2844.3,2842.8,2.9852547]
[1769399629734,1.54133547,2844.1,2842.8,2.9852547]
[1769399629935,1.54133547,2844.1,2842.9,2.9822547]
[1769399631553,0.11885625,2844.3,2842.9,2.9822547]
[1769399631752,0.11885625,2844.3,2842.8,0.88241254]
[1769399631753,0.25474448,2844.2,2843.1,2.9822547]
[1769399632054,1.54963889,2843.8,2842.8,0.003]
[1769399632359,1.54963889,2843.7,2842.8,0.003]
[1769399632561,0.25474448,2844.2,2843.4,0.002]
[1769399632746,0.25474448,2844.2,2843.4,2.9842547]
[1769399632921,0.03512607,2844.4,2843.4,2.9842547]
[1769399633330,0.91404958,2844.4,2843.4,2.9842547]
[1769399633869,2.47178735,2844.4,2843.4,0.002]
[1769399634030,1.64146873,2844.3,2843.4,0.002]
[1769399634367,1.55773855,2844.1,2843.4,0.002]
[1769399634543,0.03512607,2844.0,2843.4,0.002]
[1769399635530,0.03512607,2844.3,2843.4,0.002]
[1769399635759,0.25595026,2844.2,2843.4,0.002]
[1769399635968,0.03512607,2844.1,2843.4,0.002]
[1769399636648,0.03512607,2844.1,2843.4,2.9842547]
[1769399637043,1.60464355,2844.5,2843.4,2.9842547]
[1769399637257,1.00684966,2844.7,2843.6,2.9822547]
[1769399637474,0.31700779,2844.6,2843.6,2.9822547]
[1769399637877,0.31700779,2844.6,2843.7,2.9822547]
[1769399638083,0.03512607,2844.5,2843.7,2.9822547]
[1769399638247,0.03512607,2845.0,2843.7,2.9822547]
[1769399639274,1.61224599,2845.1,2843.7,2.9822547]
[1769399639859,1.61224599,2845.1,2843.8,2.9822547]
[1769399640060,0.03512607,2845.1,2843.8,2.9822547]
[1769399640260,0.03512607,2845.2,2844.0,2.9822547]
[1769399640660,0.03512607,2845.5,2844.0,2.9822547]
[1769399641162,1.61968711,2845.5,2844.0,2.9822547]
[1769399641373,0.08373018,2845.4,2844.0,2.9822547]
[1769399641567,0.03512607,2845.3,2844.2,2.9822547]
[1769399643470,0.03512607,2845.4,2844.2,2.9822547]
[1769399643796,0.03512607,2845.4,2844.3,3.05738018]
[1769399644997,0.001,2845.2,2844.4,3.05738018]
[1769399646890,0.03612607,2845.6,2844.5,3.05738018]
[1769399649075,0.91468268,2845.6,2844.5,3.05738018]
[1769399649484,0.91467578,2845.6,2844.5,3.05738018]
[1769399650209,0.03612607,2845.6,2844.5,3.05738018]
[1769399650522,0.91469236,2845.6,2844.5,3.05738018]
[1769399650808,0.25283632,2845.5,2844.5,3.05738018]
[1769399651012,0.03512607,2845.4,2844.5,3.05738018]
[1769399651576,0.11885625,2845.4,2844.2,3.44266657]
[1769399651917,1.62676035,2845.3,2844.2,3.05738018]
[1769399652089,0.03512607,2845.2,2844.2,3.05738018]
[1769399652871,1.62994382,2845.1,2843.8,3.05738018]
[1769399653077,0.29787526,2845.0,2843.8,3.05738018]
[1769399653290,0.29787526,2845.0,2843.9,3.05738018]
[1769399653493,0.03512607,2845.0,2843.9,3.05738018]
[1769399653892,0.03512607,2845.0,2844.0,3.05738018]